bitfinex-derivatives/quotes_ETHF0:USTF0_20250807
["timestamp","ask_amount","ask_price","bid_price","bid_amount"]
[1754584757256,18.4815,3829.1,3829.0,1.66811]
[1754584757661,18.4815,3829.1,3829.0,2.26391]
[1754584758373,0.4528,3829.4,3829.0,2.26391]
[1754584758566,0.9305,3829.4,3829.3,2.26387]
[1754584758871,19.1195,3829.4,3829.3,2.26387]
[1754584759671,0.2895,3829.8,3829.4,1.30539]
[1754584759871,0.2895,3829.8,3829.7,2.26381]
[1754584759872,1.1153,3829.8,3829.7,2.26381]
[1754584760065,19.3033,3829.8,3829.7,2.26381]
[1754584760260,20.2868229,3829.8,3829.7,2.26381]
[1754584760866,19.5991,3829.8,3829.7,2.26381]
[1754584761667,1.63732,3830.4,3830.3,1.7417]
[1754584761868,20.12012,3830.4,3830.3,0.9973]
[1754584762067,21.10621434,3830.4,3830.3,0.4973]
[1754584762676,20.28589434,3830.4,3830.3,1.2967]
[1754584762973,18.4705,3830.4,3830.3,1.7417]
[1754584763174,19.2963,3830.4,3830.3,1.7417]
[1754584763471,18.181,3830.4,3830.3,1.7417]
[1754584763666,1.1153,3830.9,3830.8,1.22286]
[1754584763977,19.5921,3830.9,3830.8,2.26366]
[1754584764279,19.98417032,3830.9,3830.8,2.26366]
[1754584764772,19.2963,3830.9,3830.8,2.26366]
[1754584765365,18.6587,3830.9,3830.8,2.26366]
[1754584765674,0.9305,3831.2,3831.1,2.26362]
[1754584765878,18.178,3831.2,3831.1,2.26362]
[1754584766063,0.9305,3831.5,3831.4,2.06348]
[1754584766269,19.1105,3831.5,3831.4,1.7417]
[1754584766577,19.5911,3831.5,3831.4,1.7417]
[1754584769869,0.6625,3830.2,3830.1,0.9995]
[1754584770075,0.4743,3830.2,3830.1,2.26376]
[1754584770272,19.6011,3830.7,3830.6,2.26369]
[1754584770467,19.3093,3830.7,3830.6,2.26369]
[1754584771072,18.194,3830.7,3830.6,2.26369]
[1754584771276,1.1153,3831.1,3831.0,2.26363]
[1754584771469,19.6041,3831.1,3831.0,2.26363]
[1754584772070,19.6041,3831.1,3831.0,1.7417]
[1754584773173,19.9024,3831.1,3831.0,1.7417]
[1754584773574,19.9024,3831.1,3831.0,1.2967]
[1754584773980,19.9024,3831.1,3831.0,0.4973]
[1754584774280,19.6041,3831.1,3831.0,1.2967]
[1754584774483,19.6041,3831.1,3831.0,1.7417]
[1754584774675,19.9024,3831.1,3831.0,1.7417]
[1754584774980,19.9024,3831.1,3831.0,1.2967]
[1754584775178,19.6041,3831.1,3831.0,1.7417]
[1754584775678,19.9024,3831.1,3831.0,1.7417]
[1754584775979,19.9024,3831.1,3831.0,1.2967]
[1754584776480,19.9024,3831.1,3831.0,0.4973]
[1754584776672,19.9024,3831.1,3831.0,0.9973]
[1754584777068,19.9024,3831.1,3831.0,0.6987]
[1754584777270,2.23136,3830.8,3830.7,1.4423]
[1754584777573,0.6625,3830.5,3830.4,0.52201]
[1754584777778,18.166,3830.6,3830.4,2.26371]
[1754584777983,18.166,3830.6,3830.5,1.7417]
[1754584778270,18.4555,3830.6,3830.5,1.7417]
[1754584779075,18.6427,3831.0,3830.9,1.2967]
[1754584779381,19.5761,3831.0,3830.9,1.7417]
[1754584779774,19.0955,3831.0,3830.9,1.7417]
[1754584780170,0.9305,3831.3,3831.2,2.2636]
[1754584780374,19.0945,3831.3,3831.2,2.2636]
[1754584780573,18.6417,3831.3,3831.2,2.2636]
[1754584780781,19.2793,3831.3,3831.2,2.2636]
[1754584780978,19.5751,3831.3,3831.2,2.2636]
[1754584781681,1.4111,3831.3,3831.2,2.2636]
[1754584784878,1.6932,3831.3,3831.2,2.2636]
[1754584786981,1.17753,3831.1,3831.0,0.52193]
[1754584787186,20.30513,3831.1,3831.0,0.52193]
[1754584788387,1.17756,3830.9,3830.8,0.70665]
[1754584788583,1.88206,3830.9,3830.8,0.70665]
[1754584788784,1.6422,3830.9,3830.8,1.48785]
[1754584789183,1.6422,3830.9,3830.8,1.77865]
[1754584789383,1.6422,3830.9,3830.8,2.22275]
[1754584789583,1.3601,3830.9,3830.8,2.22275]
[1754584790490,1.6422,3830.9,3830.8,0.82185]
[1754584790892,1.6422,3830.9,3830.8,0.52195]
[1754584791391,1.6422,3830.9,3830.8,1.77865]
[1754584791586,2.40122179,3832.0,3830.8,1.037]
[1754584791587,1.0,3832.0,3830.8,1.037]
[1754584791788,1.59976,3831.5,3831.4,0.6638]
[1754584791986,20.28006,3831.5,3831.4,0.2999]
[1754584792186,1.882,3831.2,3831.1,1.7008]
[1754584792492,1.6422,3831.2,3831.1,1.7008]
[1754584792691,19.2029,3831.2,3831.1,1.7008]
[1754584792992,19.0172,3831.2,3831.1,1.7008]
[1754584793582,18.125,3831.2,3831.1,1.7008]
[1754584793892,18.5949,3831.2,3831.1,1.7008]
[1754584794191,18.3996,3831.2,3831.1,1.7008]
[1754584795294,19.0172,3831.2,3831.1,1.7008]
[1754584795491,19.2029,3831.2,3831.1,1.7008]
[1754584795693,19.4851,3831.2,3831.1,0.9659]
[1754584795893,19.7672,3831.2,3831.1,1.2567]
[1754584796087,19.7672,3831.2,3831.1,1.7008]
[1754584796289,19.4851,3831.2,3831.1,1.7008]
[1754584797089,19.2029,3831.2,3831.1,1.7008]
[1754584798089,19.4851,3831.2,3831.1,1.7008]
[1754584799200,19.2029,3831.2,3831.1,1.7008]
[1754584799695,19.4851,3831.2,3831.1,1.7008]
[1754584800294,18.7806,3831.2,3831.1,0.6729]
[1754584800598,19.7672,3831.2,3831.1,0.9659]
[1754584800794,19.7672,3831.2,3831.1,1.2567]
[1754584800993,19.7672,3831.2,3831.1,1.7008]
[1754584801195,19.4851,3831.2,3831.1,1.7008]
[1754584802493,1.6422,3831.1,3831.0,0.52192]
[1754584802797,19.4491,3831.1,3831.0,0.52192]
[1754584802999,19.4511,3831.1,3831.0,2.22272]
[1754584803396,19.1689,3831.1,3831.0,0.82182]
[1754584803595,19.7332,3831.1,3831.0,0.70662]
[1754584803797,19.7332,3831.1,3831.0,1.48782]
[1754584804007,20.428332,3831.1,3831.0,1.48782]
[1754584804199,19.7332,3831.1,3831.0,1.48782]
[1754584804398,19.7332,3831.1,3831.0,0.9659]
[1754584805101,19.7332,3831.1,3831.0,1.41]
[1754584805304,19.7332,3831.1,3831.0,1.7008]
[1754584805595,19.1689,3831.1,3831.0,1.2567]
[1754584805800,19.7332,3831.1,3831.0,1.2567]
[1754584806098,19.7332,3831.1,3831.0,1.7008]
[1754584808100,19.96768607,3831.1,3831.0,0.9659]
[1754584808398,0.6556,3830.7,3830.6,1.11488]
[1754584808700,19.7182,3830.7,3830.6,0.82188]
[1754584808904,19.25358,3830.7,3830.5,0.52199]
[1754584809094,1.3601,3830.4,3829.8,0.293]
[1754584809295,0.2821,3830.6,3829.4,0.4441]
[1754584809296,0.7044,3830.0,3829.4,0.4441]
[1754584809606,1.3601,3829.5,3829.4,1.7008]
[1754584809798,18.3536,3829.5,3829.4,1.7008]
[1754584809998,0.6969,3829.8,3829.7,0.6638]
[1754584810203,19.1579,3829.8,3829.7,1.7008]
[1754584810397,19.4401,3829.8,3829.7,1.7008]
[1754584810596,1.0246,3829.6,3829.5,0.9659]
[1754584810801,19.7222,3829.6,3829.5,1.2567]
[1754584811005,19.7222,3829.6,3829.5,1.7008]
[1754584811398,19.4401,3829.6,3829.5,1.7008]
[1754584812908,19.7222,3829.6,3829.5,1.2567]
[1754584813513,19.7222,3829.6,3829.5,1.6871]
[1754584814104,19.4401,3829.6,3829.5,1.6871]
[1754584814606,19.72,3829.6,3829.5,1.2567]
[1754584814809,19.72,3829.6,3829.5,0.9659]
[1754584815909,19.72,3829.6,3829.5,0.4846]
[1754584816108,0.6703,3829.4,3829.3,0.52215]
[1754584816310,0.6703,3829.4,3829.3,1.92315]
[1754584816311,19.7406,3829.4,3829.3,1.92315]
[1754584816606,19.1652,3829.4,3829.3,2.22515]
[1754584816811,18.3546,3829.4,3829.3,2.22515]
[1754584817007,18.7795,3829.4,3829.3,2.22515]
[1754584817215,19.7406,3829.4,3829.3,1.02455]
[1754584817514,19.7406,3829.4,3829.3,1.20915]
[1754584817702,19.4607,3829.4,3829.3,1.49275]
[1754584817917,18.7795,3829.4,3829.3,2.22515]
[1754584818411,19.1652,3829.4,3829.3,2.22515]
[1754584818812,19.4608,3829.4,3829.3,2.22515]
[1754584819209,19.7407,3829.4,3829.3,1.79475]
[1754584819618,1.6707,3829.4,3829.3,1.79475]
[1754584819814,19.7407,3829.4,3829.3,2.22515]
[1754584820715,19.4608,3829.4,3829.3,2.22515]
[1754584821020,19.7407,3829.4,3829.3,2.22515]
[1754584821519,19.7407,3829.4,3829.3,1.703]
[1754584822719,19.4608,3829.4,3829.3,1.703]
[1754584823314,1.30557,3828.9,3827.9,0.4304]
[1754584823512,0.3857,3828.3,3828.2,1.401]
[1754584823717,0.2956,3828.5,3828.4,1.18929]
[1754584823910,0.52223,3828.9,3828.4,1.036]
[1754584824119,0.52223,3828.9,3828.0,1.30587]
[1754584824120,2.19293,3828.9,3828.8,1.2726]
[1754584824318,20.26393,3828.9,3828.8,1.2726]
[1754584824519,1.3908,3828.7,3828.6,1.79486]
[1754584824720,1.6707,3828.7,3828.6,1.79486]
[1754584825015,1.6707,3828.7,3828.6,1.2726]
[1754584825220,0.6703,3828.4,3828.3,1.5113]
[1754584825413,19.7417,3828.4,3828.3,1.5113]
[1754584826712,19.7417,3828.4,3828.3,1.7949]
[1754584826915,19.7417,3828.4,3828.3,1.0247]
[1754584827120,19.7437,3828.4,3828.3,1.5113]
[1754584827423,19.7437,3828.4,3828.3,2.2253]
[1754584828518,19.7437,3828.4,3828.3,1.2726]
[1754584828720,19.7437,3828.4,3828.3,0.989]
[1754584829211,18.5471,3828.4,3828.3,1.703]
[1754584829520,18.972,3828.4,3828.3,2.2253]
[1754584829723,19.4638,3828.4,3828.3,2.2253]
[1754584830120,19.4638,3828.4,3828.3,1.703]
[1754584830313,19.7437,3828.4,3828.3,1.703]
[1754584832118,0.5223,3828.3,3828.1,0.52233]
[1754584832319,1.6707,3828.1,3828.0,0.52234]
[1754584832521,19.7447,3828.1,3828.0,0.52234]
[1754584832714,19.4648,3828.1,3828.0,2.22534]
[1754584833315,0.1962,3828.1,3828.0,1.703]
[1754584833522,18.074,3828.2,3828.1,0.52233]
[1754584833721,18.074,3828.2,3828.1,2.22533]
[1754584833923,18.3586,3828.2,3828.1,2.22533]
[1754584834223,19.7447,3828.2,3828.1,1.703]
[1754584835013,19.7447,3828.2,3828.1,0.989]
[1754584835214,1.6707,3828.1,3828.0,1.51134]
[1754584836024,0.6703,3827.9,3827.8,0.687]
[1754584836224,19.4658,3827.9,3827.8,2.22537]
[1754584836421,19.1702,3827.9,3827.8,2.22537]
[1754584836722,0.94718,3828.5,3828.2,0.667]
[1754584836926,18.075,3828.4,3828.2,1.18931]
[1754584837130,19.0222,3828.4,3828.2,0.667]
[1754584837319,19.6925,3828.4,3828.3,1.5042]
[1754584837514,18.974,3828.4,3828.3,1.703]
[1754584838221,19.1702,3828.4,3828.3,1.703]
[1754584838525,19.4658,3828.4,3828.3,1.703]
[1754584840229,0.6703,3828.9,3828.8,0.667]
[1754584840425,19.69242,3828.9,3828.8,1.2726]
[1754584840622,20.64103357,3828.9,3828.8,1.703]
[1754584840820,20.93663357,3828.9,3828.8,1.703]
[1754584841024,21.21653357,3828.9,3828.8,0.3036]
[1754584841224,21.21653357,3828.9,3828.8,0.5024]
[1754584841633,21.21653357,3828.9,3828.2,0.52231]
[1754584841634,0.6703,3828.3,3828.2,0.52231]
[1754584841821,19.7457,3828.3,3828.2,1.32671]
[1754584842021,19.7457,3828.3,3828.2,0.3036]
[1754584842216,19.1702,3828.3,3828.1,0.52233]
[1754584842419,1.6707,3828.2,3828.1,0.90573]
[1754584842617,1.6707,3828.2,3828.1,0.989]
[1754584842824,1.0004,3828.0,3827.9,1.12796]
[1754584843023,19.7698,3828.0,3827.9,1.52516]
[1754584843224,19.7698,3828.0,3827.9,1.82536]
[1754584843425,19.7868,3828.0,3827.9,1.82536]
[1754584843620,19.7868,3828.0,3827.9,1.52516]
[1754584843825,19.7711,3828.0,3827.9,1.52516]
[1754584844131,19.7711,3828.0,3827.9,0.7008]
[1754584844430,19.7711,3828.0,3827.9,1.7194]
[1754584845024,18.3596,3828.0,3827.9,1.7194]
[1754584845224,18.075,3828.0,3827.9,1.7194]
[1754584845520,19.7842,3828.0,3827.9,1.7194]
[1754584845724,1.1324,3828.4,3828.3,1.64989]
[1754584845921,0.484,3828.7,3828.6,1.1276]
[1754584846134,19.008,3828.7,3828.6,1.1276]
[1754584846321,19.95752323,3828.7,3828.6,1.6961]
[1754584847027,19.26382313,3828.7,3828.6,1.6961]
[1754584847931,19.008,3828.7,3828.6,1.6961]
[1754584848132,0.8021,3829.1,3829.0,1.2659]
[1754584848133,1.4123,3829.1,3829.0,1.2659]
[1754584848334,19.4873,3829.1,3829.0,1.6961]
[1754584848630,20.43711975,3829.1,3829.0,1.6961]
[1754584849133,20.43712274,3829.1,3829.0,1.6961]
[1754584849933,20.43712274,3829.1,3829.0,1.4158]
[1754584850134,20.43721097,3829.1,3829.0,1.6961]
[1754584850734,20.73411097,3829.1,3829.0,1.6961]
[1754584851135,20.73411097,3829.1,3829.0,1.2659]
[1754584852028,20.73424675,3829.1,3829.0,0.9657]
[1754584852727,20.73424675,3829.1,3829.0,1.2659]
[1754584852928,20.73424675,3829.1,3829.0,1.6961]
[1754584853132,20.73424675,3829.1,3829.0,1.2659]
[1754584853332,20.73424675,3829.1,3829.0,0.9657]
[1754584853529,20.73424675,3829.1,3829.0,0.7642]
[1754584853731,20.73424675,3829.1,3829.0,0.9657]
[1754584854134,20.73424675,3829.1,3829.0,0.6775]
[1754584854325,19.02504675,3829.1,3828.2,1.58609]
[1754584854530,0.95004675,3829.0,3828.8,0.52222]
[1754584854740,20.03735793,3828.9,3828.8,0.6854]
[1754584854935,0.52224,3828.8,3828.5,0.95247]
[1754584855143,19.7812,3828.7,3828.6,0.77]
[1754584855439,19.46055793,3828.7,3828.6,1.6961]
[1754584855935,18.61945793,3828.7,3828.6,1.6961]
[1754584856734,19.26115793,3828.7,3828.6,1.6961]
[1754584856932,19.46055793,3828.7,3828.6,1.6961]
[1754584857131,0.6834,3828.5,3828.4,0.91948]
[1754584857435,0.6834,3828.5,3828.2,0.52231]
[1754584857436,1.138,3828.3,3828.2,0.52231]
[1754584857631,19.7812,3828.3,3828.2,1.00411]
[1754584857829,1.0258,3828.2,3828.1,1.29233]
[1754584858037,1.7092,3828.2,3828.1,1.20773]
[1754584858332,1.4123,3828.2,3828.1,1.93813]
[1754584858539,0.2913,3828.2,3828.1,2.21843]
[1754584859128,1.1324,3828.2,3828.1,2.21843]
[1754584859332,1.4123,3828.2,3828.1,2.21843]
[1754584860141,1.1324,3828.2,3828.1,2.21843]
[1754584860336,0.484,3828.2,3828.1,2.21843]
[1754584860538,0.933,3828.2,3828.1,2.21843]
[1754584860734,0.52223,3828.9,3828.6,1.1276]
[1754584860936,18.3623,3828.8,3828.7,1.6961]
[1754584861132,19.31349276,3828.8,3828.7,1.6961]
[1754584861336,19.06756349,3828.8,3828.7,1.6961]
[1754584861540,20.03646349,3828.8,3828.7,1.6961]
[1754584861736,20.03646349,3828.8,3828.7,0.4818]
[1754584861941,20.03646349,3828.8,3828.7,1.2659]
[1754584862245,20.03646349,3828.8,3828.7,1.6961]
[1754584862542,1.96546349,3828.8,3828.7,1.6961]
[1754584862740,19.7802,3828.8,3828.7,1.6961]
[1754584862945,19.73956349,3828.8,3828.7,1.6961]
[1754584863447,0.6834,3828.6,3828.5,1.48797]
[1754584863631,0.6834,3828.6,3828.4,0.52228]
[1754584863632,20.30247,3828.6,3828.4,0.52228]
[1754584863835,1.4123,3828.2,3828.1,1.21973]
[1754584864140,19.4823,3828.2,3828.1,1.21973]
[1754584864340,19.4823,3828.2,3828.1,2.21843]
[1754584865639,19.4823,3828.2,3828.1,1.6961]
[1754584865840,19.7792,3828.2,3828.1,0.6775]
[1754584866040,0.484,3828.0,3827.9,1.29236]
[1754584866243,19.7792,3828.0,3827.9,1.48806]
[1754584866441,20.30155,3828.0,3827.9,0.9657]
[1754584866641,19.7792,3828.0,3827.9,0.9657]
[1754584867137,19.7792,3828.0,3827.9,1.6961]
[1754584868038,1.4123,3827.8,3827.7,1.21978]
[1754584868240,19.7792,3827.8,3827.7,1.50008]
[1754584868436,19.7792,3827.8,3827.7,1.93028]
[1754584868743,19.7792,3827.8,3827.7,2.21848]
[1754584869140,19.7792,3827.8,3827.7,0.9657]
[1754584870440,19.7792,3827.8,3827.7,1.6961]
[1754584870647,1.00632,3828.3,3828.2,1.6961]
[1754584870847,20.00362,3828.3,3828.2,1.6961]
[1754584871047,21.25092752,3828.3,3828.2,1.6961]
[1754584872749,20.03422774,3828.3,3828.2,1.6961]
[1754584873051,19.73732774,3828.3,3828.2,1.6961]
[1754584873448,20.03132774,3828.3,3828.2,1.6961]
[1754584874348,0.52235,3828.0,3827.9,0.52236]
[1754584874552,18.755,3828.0,3827.9,0.71996]
[1754584874753,18.755,3828.0,3827.9,0.2884]
[1754584874954,19.4847,3828.0,3827.9,0.2884]
[1754584875154,19.27736,3828.0,3827.9,0.2884]
[1754584875548,19.01092439,3828.0,3827.9,0.783]
[1754584875750,20.03622439,3828.0,3827.9,0.783]
[1754584875952,20.03622439,3828.0,3827.9,0.486]
[1754584876153,1.7113,3827.6,3827.2,0.4227]
[1754584876352,1.30597,3827.8,3827.0,0.297]
[1754584876353,1.93977,3827.1,3827.0,0.297]
[1754584876657,1.7113,3826.9,3826.8,0.6791]
[1754584876851,19.7793,3826.9,3826.8,0.6791]
[1754584877251,19.7793,3826.9,3826.8,0.9675]
[1754584877651,19.7793,3826.9,3826.8,0.6705]
[1754584877857,1.4173,3826.4,3826.3,1.3902]
[1754584878155,19.7803,3826.4,3826.3,1.6698]
[1754584878351,19.7803,3826.4,3826.3,0.486]
[1754584878553,2.23392,3826.1,3825.9,0.94094277]
[1754584878748,19.7803,3826.0,3825.9,0.94094277]
[1754584878949,19.99158886,3826.0,3825.9,0.94094277]
[1754584879256,19.7803,3826.0,3825.9,0.94094277]
[1754584879451,0.9816,3825.1,3824.7,0.2884]
[1754584879653,1.2541,3824.7,3824.3,0.52284]
[1754584879950,1.0253,3824.5,3823.4,1.0081]
[1754584880258,1.4173,3823.5,3823.4,1.6698]
[1754584880465,18.5579,3823.5,3822.6,3.26749491]
[1754584880764,37.625,3823.4,3821.7,3.26749491]
[1754584880957,18.072,3823.3,3822.6,0.2884]
[1754584881258,37.625,3823.4,3823.1,0.81142]
[1754584881450,0.4116,3823.3,3823.2,1.0081]
[1754584881654,18.091,3823.3,3823.2,1.1084]
[1754584881850,37.625,3823.4,3823.3,1.0081]
[1754584882052,0.4116,3824.6,3824.1,0.5854]
[1754584882246,18.103,3824.5,3823.7,0.297]
[1754584882453,0.52285,3824.3,3823.7,0.5854]
[1754584882656,0.93452,3823.8,3823.2,0.8114]
[1754584882861,18.111,3823.7,3823.2,0.523]
[1754584883059,18.111,3823.7,3821.6,1.30804]
[1754584883060,0.4116,3823.5,3821.6,1.30804]
[1754584883361,0.4116,3823.3,3822.8,0.2884]
[1754584883556,0.4116,3823.3,3822.8,1.0081]
[1754584883760,0.4116,3823.2,3822.5,0.5854]
[1754584883959,0.4116,3823.2,3822.5,0.2884]
[1754584884160,0.52308,3822.6,3821.8,0.5854]
[1754584884358,0.52311,3822.4,3821.9,0.2884]
[1754584884562,18.187,3822.3,3821.9,0.297]
[1754584884764,1.30741,3823.5,3821.8,0.52318]
[1754584884765,18.187,3822.2,3822.1,0.2884]
[1754584884959,18.187,3822.2,3822.1,1.53125]
[1754584885460,0.4116,3822.5,3822.3,0.52311]
[1754584885761,18.187,3822.4,3822.2,0.52313]
[1754584885960,18.187,3822.4,3822.1,0.52315]
[1754584886161,18.187,3822.4,3821.9,0.52317]
[1754584886356,18.187,3822.4,3820.7,1.30835]
[1754584886357,0.93474,3822.3,3821.8,0.2884]
[1754584886563,0.93474,3822.3,3822.0,0.2884]
[1754584886564,0.4116,3822.1,3822.0,0.2884]
[1754584886957,0.4116,3822.1,3822.0,0.5854]
[1754584887154,0.4116,3822.4,3821.6,0.5854]
[1754584887359,18.199,3822.3,3821.6,0.7197]
[1754584887659,18.199,3822.3,3821.8,0.2884]
[1754584887968,0.52315,3822.1,3821.9,0.297]
[1754584888268,0.52314,3822.2,3821.9,0.297]
[1754584888561,0.4116,3821.8,3821.7,0.2884]
[1754584888761,18.6196,3821.8,3821.7,0.2884]
[1754584889067,18.6196,3821.8,3821.7,0.5854]
[1754584889267,18.6196,3821.8,3821.7,0.2884]
[1754584889565,0.4116,3821.7,3821.2,0.2884]
[1754584889762,0.4116,3821.7,3821.4,0.5854]
[1754584890066,0.4116,3821.6,3821.5,0.5854]
[1754584890761,0.4116,3821.6,3821.5,1.0081]
[1754584890963,0.4116,3822.0,3821.9,0.94587]
[1754584891270,18.6216,3822.0,3821.9,0.94587]
[1754584891467,0.4116,3821.9,3821.5,0.94593]
[1754584891666,0.93581,3821.7,3821.6,0.2884]
[1754584891966,0.4126,3821.7,3821.6,0.2884]
[1754584892165,0.52321,3821.7,3821.6,0.2884]
[1754584892367,18.6246,3821.7,3821.6,0.2884]
[1754584893058,18.212,3821.7,3820.8,0.2884]
[1754584893255,18.212,3821.7,3818.5,2.61821]
[1754584893256,0.52342,3820.2,3818.8,0.7197]
[1754584893455,0.4126,3820.5,3818.8,1.5211612]
[1754584893662,0.4126,3821.8,3820.7,0.297]
[1754584893857,0.93572,3822.3,3821.6,0.5854]
[1754584894062,0.93575,3822.1,3821.8,1.0081]
[1754584894261,0.4126,3822.0,3821.9,0.5854]
[1754584894657,0.4126,3822.0,3819.4,1.3088]
[1754584894658,0.52323,3821.6,3821.5,0.2884]
[1754584894862,0.52327,3821.2,3820.6,1.0081]
[1754584895063,18.303,3821.1,3820.2,0.4227]
[1754584895256,0.4126,3821.0,3820.3,0.5854]
[1754584895456,0.52331,3820.9,3820.3,0.297]
[1754584895760,0.93591,3820.9,3820.6,1.0081]
[1754584895956,0.93591,3820.9,3820.1,0.52342]
[1754584895957,18.82629,3821.1,3820.8,0.5854]
[1754584896156,0.52327,3821.2,3821.0,0.5854]
[1754584896457,18.316,3821.1,3821.0,0.5854]
[1754584896869,18.7286,3821.1,3821.0,0.2884]
[1754584897262,0.52336,3820.6,3820.3,0.4227]
[1754584897470,19.25297,3820.5,3820.4,0.2884]
[1754584897668,19.25297,3820.5,3819.9,0.94242071]
[1754584897669,0.93603,3820.0,3819.9,0.94242071]
[1754584897862,0.4126,3819.2,3818.0,0.2884]
[1754584898065,18.318,3819.1,3817.2,0.4227]
[1754584898363,18.318,3819.1,3816.9,1.24016142]
[1754584898364,0.52368,3818.2,3817.6,0.2884]
[1754584898562,0.4126,3818.0,3817.5,0.2884]
[1754584898758,0.4126,3817.8,3817.7,0.5854]
[1754584898956,0.4126,3818.7,3818.0,0.2884]
[1754584899159,18.404,3818.6,3818.5,1.0081]
[1754584899668,0.4126,3819.2,3818.7,0.2884]
[1754584899870,0.52362,3818.7,3818.3,0.5854]
[1754584900070,0.52371,3818.0,3817.8,0.2884]
[1754584900272,18.408,3817.9,3817.6,0.297]
[1754584900472,0.52382,3817.2,3817.1,0.297]
[1754584900669,0.93642,3817.2,3817.1,0.7197]
[1754584900867,0.93642,3817.2,3816.9,0.94316142]
[1754584900868,0.4126,3817.1,3817.0,0.5854]
[1754584901068,18.423,3817.3,3817.0,0.297]
[1754584901369,0.52385,3817.0,3816.9,0.94316142]
[1754584901565,0.93645,3817.0,3816.9,1.23156142]
[1754584901872,0.4126,3817.0,3816.9,1.52856142]
[1754584902363,0.52375,3817.7,3817.0,0.2884]
[1754584902567,0.52378,3817.5,3817.0,0.2884]
[1754584902871,18.44,3817.6,3816.9,1.76401142]
[1754584902872,0.0011,3818.5,3816.9,0.94316142]
[1754584903066,9.572,3818.4,3818.0,0.5237]
[1754584903269,0.5237,3818.1,3817.5,0.52376]
[1754584903570,0.4132,3818.8,3818.2,0.7085]
[1754584903765,0.52364,3818.5,3818.3,0.2879]
[1754584903974,0.4132,3818.4,3818.3,0.2879]
[1754584904271,0.4132,3818.4,3818.3,0.5768]
[1754584904661,0.52375,3817.7,3817.5,0.2889]
[1754584904873,0.4143,3818.1,3817.6,0.2889]
[1754584905076,0.52375,3817.7,3817.6,0.2879]
[1754584905372,0.4132,3817.7,3817.6,0.5768]
[1754584905667,0.4143,3818.2,3817.8,0.5768]
[1754584905869,18.47,3818.1,3818.0,0.7095]
[1754584906075,18.47,3818.1,3818.0,0.9974]
[1754584906566,18.8832,3818.1,3818.0,0.5768]
[1754584906762,18.8843,3818.1,3818.0,0.5768]
[1754584906967,0.93801,3818.0,3817.8,0.2879]
[1754584907173,0.93699,3817.4,3817.3,0.2879]
[1754584907368,19.40209,3817.4,3817.3,0.2879]
[1754584907571,18.464,3817.4,3817.3,0.4206]
[1754584907765,1.30912,3818.5,3817.4,0.52379]
[1754584907972,0.52375,3817.7,3817.6,0.9974]
[1754584908172,18.99875,3817.7,3817.6,0.9974]
[1754584909174,0.52384,3817.1,3817.0,0.5768]
[1754584909373,0.93814,3817.1,3816.9,0.94316142]
[1754584909674,18.8873,3817.0,3816.9,0.94316142]
[1754584909874,19.57177416,3817.0,3816.9,1.23106142]
[1754584910373,0.4132,3817.5,3816.9,2.46441142]
[1754584910578,18.497,3817.4,3816.9,0.94316142]
[1754584910877,19.02079,3817.4,3817.3,0.9974]
[1754584911278,19.43399,3817.4,3817.3,0.9974]
[1754584911575,20.11893451,3817.4,3817.3,0.9974]
[1754584911966,18.75040799,3817.4,3817.3,0.9974]
[1754584912179,0.5237,3818.1,3817.8,0.52372]
[1754584912380,18.504,3818.0,3817.9,0.5768]
[1754584912675,0.52365,3818.4,3818.2,0.2879]
[1754584912871,0.52365,3818.4,3818.3,0.2879]
[1754584913068,0.52369,3818.2,3817.8,0.52373]
[1754584913270,0.5237,3818.1,3818.0,0.9974]
[1754584913474,18.512,3818.6,3817.0,0.9974]
[1754584913674,19.20482192,3818.5,3818.3,0.52365]
[1754584913875,18.519,3818.5,3818.4,0.9974]
[1754584914175,19.20472953,3818.5,3818.4,0.9974]
[1754584914772,19.20272953,3818.5,3818.4,0.9974]
[1754584914971,19.20272953,3818.5,3817.7,0.52373]
[1754584915177,0.68572953,3818.4,3817.9,0.9974]
[1754584915471,10.611,3819.5,3819.1,0.9974]
[1754584915670,1.20925953,3819.4,3819.3,0.9974]
[1754584916073,19.35233,3819.4,3819.3,0.65702058]
[1754584916274,20.48355953,3819.4,3819.3,0.23642058]
[1754584916578,20.75575953,3819.4,3819.3,0.23642058]
[1754584916873,0.52356,3819.1,3818.1,0.52369]
[1754584917076,0.52368,3818.2,3817.9,0.52371]
[1754584917271,0.2818,3818.7,3816.5,1.30978]
[1754584917272,1.30927,3818.1,3816.5,1.30978]
[1754584917479,0.5238,3817.3,3817.1,0.4206]
[1754584917773,19.23872953,3817.6,3817.0,0.4206]
[1754584917978,0.68572953,3817.5,3817.4,0.9974]
[1754584918578,0.96752953,3817.5,3817.4,0.7095]
[1754584918769,0.68572953,3817.5,3817.4,0.81269]
[1754584918972,0.68572953,3817.5,3817.4,0.7095]
[1754584919273,1.41302953,3817.5,3817.4,0.2889]
[1754584919477,1.41302953,3817.5,3817.4,0.7095]
[1754584919679,0.80564,3817.1,3817.0,0.7095]
[1754584919871,0.68572953,3817.1,3817.0,1.52124]
[1754584920368,1.40122179,3817.8,3817.0,0.9974]
[1754584920580,1.40122179,3817.8,3816.9,2.25279142]
[1754584920581,0.68895142,3817.7,3817.6,0.5768]
[1754584920774,0.68895142,3817.7,3817.6,0.9974]